bitfinex-derivatives/quotes_SOLF0:USTF0_20260203
["timestamp","ask_amount","ask_price","bid_price","bid_amount"]
[1770087958119,136.9839,102.3,102.21,52.10516828]
[1770087958323,527.1639,102.3,102.21,52.10516828]
[1770087958729,8.8086,102.27,102.21,60.91876828]
[1770087959226,8.8095,102.26,102.2,8.8145]
[1770087959929,137.0499,102.25,102.17,52.11614843]
[1770087960227,137.0636,102.24,102.15,52.11614843]
[1770087960431,15.33006837,102.22,102.15,52.11614843]
[1770087960830,542.60016837,102.22,102.13,52.11015726]
[1770087961027,15.33006837,102.2,102.13,52.11015726]
[1770087961226,8.8163,102.18,102.13,52.11015726]
[1770087961632,390.22,102.2,102.13,52.11015726]
[1770087962033,15.33006837,102.22,102.14,52.11015726]
[1770087962223,15.33006837,102.24,102.16,52.11015726]
[1770087962424,152.36206837,102.27,102.19,52.18738569]
[1770087962425,15.33006837,102.27,102.19,52.18738569]
[1770087962631,227.58,102.28,102.2,52.18738569]
[1770087962838,15.33006837,102.25,102.17,52.18738569]
[1770087963328,15.33006837,102.25,102.18,52.18738569]
[1770087963530,15.33006837,102.29,102.2,52.18738569]
[1770087963737,390.26,102.28,102.2,52.18738569]
[1770087964033,390.26,102.28,102.21,52.18738569]
[1770087965227,15.33006837,102.29,102.21,52.18738569]
[1770087965432,8.8078,102.28,102.21,61.00108569]
[1770087966733,390.28,102.29,102.22,52.25224379]
[1770087967037,15.33006837,102.31,102.23,52.25224379]
[1770087967337,136.9535,102.33,102.26,61.06144379]
[1770087967338,24.13416837,102.33,102.26,61.06144379]
[1770087967833,15.33006837,102.31,102.24,8.8104]
[1770087968038,15.33006837,102.31,102.24,61.06264379]
[1770087968239,24.13516837,102.31,102.25,8.8102]
[1770087970833,198.9139,102.36,102.26,52.24881944]
[1770087970834,15.33006837,102.35,102.26,52.24881944]
[1770087971034,136.8826,102.38,102.28,52.24881944]
[1770087971235,15.33006837,102.38,102.3,189.22641944]
[1770087971443,390.24,102.39,102.32,8.8041]
[1770087971636,390.24,102.39,102.32,61.05291944]
[1770087972645,390.24,102.39,102.33,61.06293542]
[1770087973738,405.57006837,102.39,102.33,52.26003542]
[1770087973936,405.57006837,102.39,102.31,8.8044]
[1770087973937,152.19366837,102.39,102.31,8.8044]
[1770087974146,390.2,102.38,102.31,8.8044]
[1770087974339,390.2,102.38,102.31,61.06443542]
[1770087974647,15.33006837,102.37,102.29,8.8062]
[1770087974846,15.33006837,102.37,102.29,61.0559564]
[1770087975645,15.33006837,102.37,102.3,8.8058]
[1770087975845,398.9198,102.38,102.3,189.2313564]
[1770087976148,398.9198,102.38,102.3,52.2497564]
[1770087976547,390.12,102.38,102.31,61.05220682]
[1770087976846,405.43006837,102.39,102.31,189.21480682]
[1770087977242,405.43006837,102.39,102.33,8.8031]
[1770087977947,390.1,102.39,102.33,8.8031]
[1770087978249,390.1,102.39,102.34,8.8024]
[1770087982946,191.95672542,102.39,102.36,136.9003]
[1770087983147,23.7319184,102.44,102.35,136.9025]
[1770087983347,23.7319184,102.42,102.35,136.9025]
[1770087984150,23.7319184,102.42,102.37,8.7999]
[1770087985254,23.7319184,102.42,102.38,8.7991]
[1770087986556,23.74478275,102.44,102.39,8.7982]
[1770087986858,136.7508,102.48,102.39,136.8551]
[1770087986859,15.33006837,102.48,102.39,136.8551]
[1770087987053,15.33006837,102.48,102.41,8.7962]
[1770087987245,15.33006837,102.48,102.39,136.8551]
[1770087988056,15.33006837,102.44,102.36,136.8923]
[1770087988257,15.33006837,102.44,102.37,136.887]
[1770087988459,285.9,102.46,102.39,136.8607]
[1770087988655,15.3814085,102.46,102.39,136.8607]
[1770087989356,15.3814085,102.46,102.41,8.7965]
[1770087990555,15.36121108,102.44,102.39,8.7978]
[1770087991159,15.36121108,102.44,102.37,136.887]
[1770087991755,15.36121108,102.43,102.38,8.7991]
[1770087991958,15.36121108,102.43,102.37,136.888]
[1770087993060,15.33569568,102.45,102.38,136.8751]
[1770087993354,9.568e-05,102.45,102.4,136.8477]
[1770087993558,15.33006837,102.48,102.42,8.7954]
[1770087993952,15.33006837,102.48,102.39,136.8618]
[1770087994260,24.12236837,102.46,102.38,136.8751]
[1770087995459,7.63756194,102.45,102.4,8.7973]
[1770087996365,7.63756194,102.45,102.39,8.7982]
[1770087996366,7.63756194,102.43,102.39,8.7982]
[1770087997968,397.34526755,102.46,102.39,136.8591]
[1770087998166,7.62526755,102.46,102.39,136.8591]
[1770087998668,7.62526755,102.46,102.41,8.7957]
[1770087998868,7.62526755,102.46,102.4,136.8409]
[1770087999170,412.67816314,102.48,102.42,8.7948]
[1770087999468,7.62809477,102.47,102.42,8.7948]
[1770087999867,7.62809477,102.47,102.43,8.7947]
[1770088000262,389.72,102.48,102.43,8.7947]
[1770088000663,7.61473782,102.53,102.46,136.7674]
[1770088000967,7.61473782,102.53,102.45,136.7788]
[1770088001163,16.40093782,102.53,102.45,136.7788]
[1770088002369,7.61473782,102.52,102.46,8.7914]
[1770088002565,7.57602369,102.51,102.43,136.8043]
[1770088002968,7.57602369,102.51,102.45,8.793]
[1770088003363,7.57602369,102.5,102.44,8.7939]
[1770088005164,7.57602369,102.5,102.45,8.7929]
[1770088005365,7.57602369,102.5,102.44,136.7933]
[1770088005562,7.5787213,102.52,102.48,8.7905]
[1770088005969,341.66,102.55,102.48,8.7905]
[1770088005970,7.5787213,102.54,102.48,8.7905]
[1770088007263,7.56743399,102.56,102.48,136.7374]
[1770088007469,136.6182,102.58,102.46,136.7684]
[1770088007470,7.56743399,102.61,102.53,136.6728]
[1770088007664,7.56743399,102.6,102.53,8.7858]
[1770088007862,7.56743399,102.6,102.51,319.5587]
[1770088008075,7.56743399,102.6,102.53,136.6737]
[1770088008364,7.56743399,102.6,102.54,8.7852]
[1770088008569,7.56743399,102.6,102.52,136.6878]
[1770088008772,7.54498525,102.59,102.5,136.7104]
[1770088008970,15.33006837,102.6,102.5,136.7104]
[1770088008971,22.87505362,102.58,102.5,136.7104]
[1770088009770,22.87505362,102.56,102.47,136.7501]
[1770088009970,22.87505362,102.56,102.47,319.9501]
[1770088010668,22.87505362,102.56,102.5,8.7887]
[1770088011062,7.53662523,102.55,102.5,8.7887]
[1770088011969,7.53662523,102.55,102.45,136.7715]
[1770088012172,22.8666936,102.52,102.44,136.7944]
[1770088012371,22.8666936,102.52,102.45,136.7803]
[1770088012567,136.6498,102.55,102.45,136.7803]
[1770088012767,7.52097108,102.55,102.49,8.7894]
[1770088016075,7.52120901,102.56,102.49,136.7278]
[1770088016875,7.52120901,102.56,102.51,8.7875]
[1770088017771,7.52120901,102.56,102.49,8.7892]
[1770088018980,7.52120901,102.56,102.5,8.7887]
[1770088020481,7.52120901,102.56,102.49,8.7896]
[1770088021383,16.30480901,102.56,102.49,8.7896]
[1770088021584,7.52120901,102.56,102.49,136.7258]
[1770088022082,389.32,102.59,102.5,136.7133]
[1770088022289,151.80876077,102.61,102.54,151.89216077]
[1770088022290,7.46114397,102.61,102.54,151.89216077]
[1770088022490,7.45971212,102.64,102.56,151.86486077]
[1770088022784,7.45971212,102.62,102.56,8.7828]
[1770088023884,7.45971212,102.61,102.56,8.7828]
[1770088024484,7.45971212,102.61,102.51,136.6912]
[1770088024685,7.4627855,102.6,102.51,136.6912]
[1770088024888,376.4627855,102.61,102.54,136.6582]
[1770088025084,7.4627855,102.61,102.55,8.7845]
[1770088025291,69.4627855,102.61,102.55,8.7845]
[1770088025989,7.4627855,102.61,102.55,8.7845]
[1770088026393,22.69434627,102.61,102.54,8.7853]
[1770088026593,7.47149313,102.6,102.54,8.7853]
[1770088027794,7.47149313,102.6,102.52,273.3629]
[1770088027999,22.7030539,102.6,102.52,273.3629]
[1770088028400,22.67523769,102.62,102.55,136.6472]
[1770088028698,7.44367692,102.62,102.55,136.6472]
[1770088028906,7.44367692,102.62,102.54,136.6586]
[1770088030401,7.44367692,102.62,102.57,8.7827]
[1770088031102,7.48764873,102.61,102.56,8.7836]
[1770088031996,7.48764873,102.59,102.5,136.7035]
[1770088032602,7.48870947,102.57,102.49,136.723]
[1770088033098,7.48870947,102.57,102.5,136.711]
[1770088033296,7.48870947,102.6,102.54,136.6613]
[1770088033699,22.72027024,102.63,102.54,136.6613]
[1770088033899,7.48870947,102.62,102.54,136.6613]
[1770088034095,7.48870947,102.62,102.53,136.672]
[1770088034299,7.48870947,102.65,102.58,136.605]
[1770088034500,22.70638705,102.68,102.59,136.5937]
[1770088034802,7.47482628,102.67,102.6,136.5773]
[1770088035197,7.47482628,102.67,102.62,8.7783]
[1770088035396,7.47482628,102.69,102.62,8.7783]
[1770088035598,15.23156077,102.68,102.6,136.5773]
[1770088035794,7.47482628,102.67,102.61,8.7793]
[1770088036304,15.23156077,102.69,102.61,136.5684]
[1770088036604,7.44169852,102.68,102.62,8.7781]
[1770088036804,7.44169852,102.68,102.6,136.5807]
[1770088037006,7.44169852,102.66,102.59,8.7809]
[1770088037201,7.44169852,102.65,102.58,136.6078]
[1770088037605,7.44169852,102.65,102.6,8.7801]
[1770088038005,7.44169852,102.65,102.58,136.6078]
[1770088038006,7.44169852,102.65,102.58,136.6057]
[1770088038307,7.44169852,102.68,102.61,136.5669]
[1770088038506,7.44169852,102.68,102.6,136.5769]
[1770088038708,7.44169852,102.68,102.61,8.7792]
[1770088039406,22.67325929,102.68,102.61,8.7792]
[1770088039707,7.41645422,102.67,102.61,8.7792]
[1770088040603,7.39186097,102.65,102.59,8.7806]
[1770088041108,7.39186097,102.64,102.56,136.6234]
[1770088041809,7.39186097,102.66,102.58,136.6044]
[1770088042003,7.39186097,102.66,102.59,136.5936]
[1770088042198,7.39186097,102.66,102.61,8.7794]
[1770088042809,7.39186097,102.66,102.59,8.7805]
[1770088043310,335.4234792,102.68,102.6,136.5814]
[1770088043701,69.3234792,102.67,102.59,136.5946]
[1770088044107,69.3234792,102.67,102.59,8.7803]
[1770088044306,84.55503997,102.67,102.59,8.7803]
[1770088044603,84.55503997,102.67,102.58,136.6052]
[1770088044807,22.55503997,102.67,102.58,136.6052]
[1770088045002,7.3234792,102.67,102.6,136.5782]
[1770088045201,7.24564103,102.7,102.6,136.5782]
[1770088045407,15.02161124,102.7,102.62,136.5535]
[1770088045612,15.02161124,102.7,102.63,8.7775]
[1770088046105,7.24564103,102.7,102.63,8.7775]
[1770088047308,22.4772018,102.7,102.63,8.7775]
[1770088047502,7.24564103,102.7,102.64,8.7767]
[1770088048110,7.24573114,102.69,102.61,136.5675]
[1770088048310,22.47729191,102.68,102.6,136.5782]
[1770088048511,22.47729191,102.68,102.58,151.82906077]
[1770088048512,7.23094316,102.67,102.59,136.589]
[1770088048815,7.23094316,102.67,102.61,8.7793]
[1770088049203,7.23094316,102.67,102.59,136.589]
[1770088049204,7.23094316,102.67,102.6,136.5778]
[1770088049803,7.23094316,102.67,102.6,8.7794]
[1770088050413,7.23094316,102.67,102.61,8.7793]
[1770088050715,22.42710814,102.66,102.58,136.5975]
[1770088050916,22.42710814,102.66,102.59,136.5904]
[1770088051816,22.42710814,102.66,102.58,136.5975]
[1770088051817,22.42710814,102.66,102.6,8.7802]
[1770088052209,7.19554737,102.65,102.57,136.61]
[1770088052408,7.19554737,102.65,102.57,145.3919]
[1770088052613,7.19554737,102.65,102.57,8.7819]
[1770088052916,22.42480371,102.64,102.56,136.6348]
[1770088053114,22.42480371,102.64,102.58,8.7819]
[1770088054115,22.42480371,102.64,102.59,8.781]
[1770088055020,22.42480371,102.64,102.58,8.7819]
[1770088055317,22.42480371,102.64,102.52,136.6772]
[1770088055318,22.38684564,102.6,102.52,136.6772]
[1770088056114,22.38684564,102.6,102.51,136.6952]
[1770088056817,22.38684564,102.6,102.53,8.7861]
[1770088057516,22.38684564,102.6,102.54,8.7853]
[1770088058312,7.15528487,102.6,102.55,8.7844]
[1770088058515,411.32549437,102.63,102.55,136.6467]
[1770088058818,7.1739336,102.62,102.55,8.7839]
[1770088061019,7.1739336,102.62,102.52,323.5874]
[1770088061020,22.40737138,102.61,102.54,8.7852]
[1770088061421,22.40737138,102.59,102.54,8.7852]
[1770088061622,22.40737138,102.59,102.53,8.7861]
[1770088063723,7.16189396,102.58,102.49,136.7176]
[1770088065419,7.16189396,102.58,102.51,8.7877]
[1770088065620,22.39872168,102.57,102.51,8.7877]
[1770088069919,7.16716091,102.57,102.52,8.787]
[1770088070719,22.39781457,102.59,102.53,8.7862]
[1770088070922,334.17781457,102.59,102.53,8.7862]
[1770088071123,7.1662538,102.58,102.5,136.7109]
[1770088071627,7.1662538,102.58,102.52,8.787]
[1770088075932,7.1662538,102.58,102.53,8.7861]
[1770088076328,7.1662538,102.58,102.5,136.7109]
[1770088077727,22.38524858,102.61,102.52,136.6874]
[1770088077926,7.15368781,102.61,102.53,136.6737]
[1770088078322,7.15368781,102.64,102.55,136.6454]
[1770088078932,7.15368781,102.64,102.54,136.6564]
[1770088079330,7.15368781,102.64,102.58,8.7815]
[1770088079531,7.15368781,102.64,102.55,136.6441]
[1770088079929,7.15368781,102.64,102.54,323.1964]
[1770088080627,15.21092869,102.68,102.59,136.595]
[1770088080832,7.15747599,102.69,102.6,136.5801]
[1770088081225,7.15747599,102.69,102.59,136.595]
[1770088081422,192.39747599,102.71,102.62,136.548]
[1770088081622,192.39747599,102.71,102.61,136.567]
[1770088081623,194.0109,102.71,102.61,136.567]
[1770088081827,7.15747599,102.7,102.61,136.567]
[1770088083226,7.15747599,102.7,102.63,8.7776]
[1770088083429,15.91248938,102.73,102.63,136.5379]
[1770088083630,7.14258938,102.72,102.65,8.7759]
[1770088084030,15.91258938,102.72,102.62,151.76512869]
[1770088084733,15.91258938,102.72,102.62,160.54282869]
[1770088084934,15.95571688,102.71,102.62,23.98862869]
[1770088085235,15.95571688,102.71,102.62,15.21092869]
[1770088085436,7.18491688,102.71,102.63,8.7776]
[1770088085636,7.18491688,102.71,102.62,151.76352869]
[1770088085932,84.39584557,102.73,102.63,136.539]
[1770088086139,69.18491688,102.73,102.63,136.539]
[1770088086336,388.96,102.74,102.67,136.4816]
[1770088086539,15.21092869,102.77,102.67,136.4816]
[1770088086540,22.39691299,102.77,102.67,136.4816]
[1770088086738,22.39691299,102.77,102.67,145.2551]
[1770088087038,7.1859843,102.77,102.69,136.4604]
[1770088087242,7.1859843,102.77,102.68,136.4739]
[1770088087538,7.1859843,102.77,102.69,8.7723]
[1770088089037,7.1859843,102.77,102.7,8.7715]
[1770088089434,22.48945574,102.79,102.68,136.473]
[1770088089630,8.765,102.78,102.69,8.7723]
[1770088089836,22.48945574,102.79,102.69,136.4591]
[1770088090132,7.27852705,102.79,102.69,136.4591]
[1770088090335,16.04282705,102.79,102.7,8.7715]
[1770088091043,7.28045479,102.78,102.7,8.7715]
[1770088091444,8.7652,102.78,102.68,322.693]
[1770088091741,7.28045479,102.77,102.68,322.693]
[1770088092443,7.28045479,102.77,102.69,8.7724]
[1770088092743,16.04645479,102.77,102.67,136.4878]
[1770088093740,16.04645479,102.77,102.69,8.7724]
[1770088094138,7.28045479,102.77,102.69,8.7724]
[1770088094741,7.28045479,102.77,102.7,8.7714]
[1770088096342,62.0,102.79,102.72,8.7698]
[1770088096536,7.23838735,102.82,102.72,136.4218]
[1770088096740,7.23838735,102.82,102.73,136.4084]
[1770088097242,7.23838735,102.82,102.74,8.7682]
[1770088097746,7.23838735,102.82,102.75,8.7673]
[1770088097943,7.23838735,102.82,102.73,136.4054]
[1770088099549,7.23838735,102.82,102.75,8.7674]
[1770088100947,7.22635177,102.8,102.71,136.4345]
[1770088101747,7.22635177,102.78,102.69,136.4565]
[1770088103043,7.20451993,102.76,102.67,136.477]
[1770088103345,22.41544862,102.75,102.67,136.477]
[1770088103747,22.41544862,102.75,102.68,8.7734]
[1770088105240,136.343,102.78,102.7,136.4478]
[1770088105241,7.20793489,102.78,102.7,136.4478]
[1770088105646,7.20793489,102.78,102.71,136.4354]
[1770088105847,7.20793489,102.78,102.71,8.7702]
[1770088106044,7.20793489,102.78,102.7,136.4478]
[1770088106747,7.20793489,102.78,102.71,8.7708]
[1770088107149,7.20793489,102.78,102.72,8.7699]
[1770088107351,7.19553713,102.8,102.72,136.4214]
[1770088107944,7.19553713,102.8,102.71,186.2]
[1770088108149,7.19553713,102.8,102.71,322.6344]
[1770088108851,7.17211583,102.77,102.67,151.69442869]
[1770088109051,7.17211583,102.77,102.67,136.4835]
[1770088109352,15.21092869,102.76,102.67,136.4835]
[1770088109550,7.17211583,102.75,102.66,322.9723]
[1770088110752,22.37927202,102.74,102.65,136.5038]
[1770088111451,15.93744333,102.73,102.64,323.264]
[1770088111751,15.93744333,102.73,102.63,151.74152869]
[1770088111752,7.16834333,102.69,102.6,136.5807]
[1770088111945,7.16834333,102.69,102.6,323.4407]
[1770088112456,7.16834333,102.69,102.62,8.7777]
[1770088112946,15.94094333,102.69,102.6,323.4407]
[1770088113150,7.16425953,102.67,102.58,136.6043]
[1770088113350,7.16425953,102.67,102.59,136.5949]
[1770088113549,7.16425953,102.67,102.59,8.7802]
[1770088115045,7.16425953,102.67,102.58,136.6043]
[1770088115046,7.16425953,102.67,102.6,8.7802]
[1770088115443,15.93855953,102.67,102.57,136.6172]
[1770088115644,15.93855953,102.67,102.57,323.7172]
[1770088116051,7.16425953,102.67,102.59,8.781]
[1770088116349,7.16425953,102.67,102.58,136.6044]
[1770088116550,22.3372044,102.66,102.57,323.7172]
[1770088116746,22.3372044,102.66,102.58,8.7811]
[1770088117345,22.3372044,102.66,102.59,8.781]
[1770088117545,15.21092869,102.64,102.56,187.12]
[1770088117752,22.3372044,102.64,102.56,8.783]
[1770088118059,31.1143044,102.64,102.56,8.783]
[1770088118459,7.12627571,102.63,102.56,8.783]
[1770088120357,7.12627571,102.63,102.54,136.6499]
[1770088121053,6.98461541,102.62,102.53,323.7241]
[1770088121251,6.98461541,102.61,102.51,136.7007]
[1770088121450,6.98461541,102.59,102.49,136.7179]
[1770088121658,6.98461541,102.59,102.51,8.7872]
[1770088121955,6.98461541,102.59,102.51,136.7001]
[1770088122156,22.1955441,102.61,102.53,8.7861]
[1770088122352,6.98461541,102.6,102.51,136.7001]
[1770088122554,6.98461541,102.6,102.51,8.7872]
[1770088122757,6.98461541,102.6,102.51,136.7009]
[1770088123152,6.98461541,102.6,102.52,8.7869]
[1770088123359,7.00729463,102.59,102.49,338.98882869]
[1770088124359,7.00729463,102.59,102.52,8.7869]
[1770088125953,7.00729463,102.59,102.53,8.7861]
[1770088126157,15.21092869,102.61,102.53,136.675]
[1770088126158,22.18842972,102.61,102.53,136.675]
[1770088126361,22.18842972,102.61,102.52,136.6859]
[1770088127161,22.18842972,102.61,102.55,8.7844]
[1770088127354,6.97750103,102.61,102.53,136.6715]
[1770088127760,6.97433565,102.6,102.5,136.7092]
[1770088127956,22.18526434,102.59,102.5,187.26]
[1770088128160,6.97433565,102.58,102.49,136.7166]
[1770088128859,6.97433565,102.58,102.49,136.7275]
[1770088129866,22.23179331,102.57,102.48,136.7304]
[1770088130065,7.02071533,102.54,102.45,136.7715]
[1770088130461,7.02071533,102.54,102.48,8.7904]
[1770088130664,7.02071533,102.54,102.45,136.7715]
[1770088131262,7.02071533,102.54,102.46,136.7682]
[1770088132074,7.02071533,102.54,102.46,8.7914]
[1770088132572,15.80611533,102.54,102.46,8.7914]
[1770088132968,15.80611533,102.54,102.45,136.7715]
[1770088132969,7.02071533,102.54,102.47,8.7911]
[1770088134576,7.02469226,102.52,102.43,136.8036]
[1770088135274,7.02469226,102.52,102.45,136.7816]
[1770088135973,7.02469226,102.54,102.47,8.7913]
[1770088136167,22.23562095,102.55,102.46,136.7662]
[1770088136677,22.23562095,102.55,102.48,8.7897]
[1770088137271,7.01284684,102.54,102.48,8.7897]
[1770088137476,7.01284684,102.54,102.47,8.7913]
[1770088138674,7.01284684,102.54,102.48,8.7903]
[1770088140177,7.00783878,102.56,102.48,136.7412]
[1770088141079,22.2163679,102.61,102.52,136.688]
[1770088141579,7.00543921,102.6,102.51,136.6954]
[1770088141973,7.00543921,102.59,102.52,8.7863]
[1770088142575,7.00543921,102.59,102.53,8.7861]
[1770088143177,7.00543921,102.59,102.54,8.7853]
[1770088143774,7.00543921,102.59,102.53,8.7862]
[1770088144183,7.00543921,102.59,102.51,136.6991]
[1770088144680,7.00543921,102.59,102.53,8.7861]
[1770088145179,7.00543921,102.59,102.5,339.71803954]
[1770088145381,7.00543921,102.59,102.51,136.7017]
[1770088145773,6.99457796,102.58,102.5,196.5679]
[1770088145975,6.99457796,102.57,102.48,136.7311]
[1770088146979,198.5845,102.6,102.47,324.7043]
[1770088146980,6.98829914,102.55,102.47,324.7043]
[1770088147582,6.98829914,102.55,102.49,8.7888]
[1770088148082,6.98829914,102.55,102.5,8.7887]
[1770088149280,6.98829914,102.55,102.49,8.7896]
[1770088149684,6.98829914,102.55,102.48,136.7416]
[1770088150079,411.33483588,102.58,102.49,136.7277]
[1770088150384,22.21483588,102.58,102.49,136.7277]
[1770088150883,6.99062201,102.56,102.47,324.7043]
[1770088152283,6.99062201,102.56,102.49,8.7895]
[1770088154778,6.99062201,102.56,102.5,8.7886]
[1770088155182,6.99062201,102.56,102.48,136.7406]
[1770088155380,7.01140911,102.59,102.52,8.7869]
[1770088155685,7.01140911,102.59,102.5,136.7146]
[1770088157388,7.01140911,102.59,102.53,8.7861]
[1770088159989,6.99340647,102.57,102.49,136.7187]
[1770088161183,6.99076177,102.56,102.47,136.7443]
[1770088161488,6.99076177,102.56,102.46,325.6034]
[1770088161688,6.99076177,102.54,102.45,136.7714]
[1770088161891,6.99076177,102.54,102.46,136.7681]
[1770088162085,6.99076177,102.54,102.45,136.7714]
[1770088162681,6.99076177,102.54,102.47,8.7912]
[1770088162881,6.99076177,102.54,102.46,136.7679]
[1770088163289,6.99076177,102.54,102.48,8.7903]
[1770088164193,6.99076177,102.54,102.49,8.7895]
[1770088164390,6.98188489,102.56,102.48,136.7412]
[1770088164991,6.98188489,102.56,102.49,136.7226]
[1770088165389,6.98188489,102.56,102.51,8.7878]
[1770088168094,6.98188489,102.56,102.49,8.7889]
[1770088168394,14.8073079,102.55,102.49,8.7889]
[1770088168597,6.98053455,102.55,102.49,8.7889]
[1770088170898,6.98053455,102.55,102.5,8.7887]
[1770088171193,6.98053455,102.55,102.48,136.7402]
[1770088171397,6.98053455,102.55,102.49,136.7234]
[1770088171899,6.98053455,102.55,102.51,8.7872]
[1770088174899,6.98053455,102.55,102.5,8.7886]
[1770088179604,6.98053455,102.55,102.49,8.7894]
[1770088180105,6.98053455,102.55,102.47,136.7538]
[1770088180303,6.98053455,102.55,102.49,8.7894]
[1770088180704,6.98053455,102.55,102.47,136.7538]
[1770088181605,6.91775949,102.58,102.49,273.4537]
[1770088181904,6.91775949,102.58,102.5,136.7138]
[1770088182205,6.91775949,102.58,102.52,8.7864]
[1770088183806,6.90985405,102.57,102.48,341.86373954]
[1770088184002,6.90985405,102.56,102.48,189.9]
[1770088184202,7.8546668,102.55,102.46,136.7669]
[1770088184505,15.69458798,102.54,102.47,8.7912]
[1770088184703,14.76314696,102.53,102.47,8.7912]
[1770088184903,6.90908798,102.53,102.47,8.7912]
[1770088185305,6.90908798,102.52,102.46,8.7922]
[1770088185809,6.90908798,102.52,102.44,136.7881]
[1770088187208,6.90908798,102.52,102.47,8.7913]
[1770088188412,6.9103554,102.54,102.48,8.7903]
[1770088189008,6.9103554,102.54,102.49,8.7896]
[1770088189708,6.9103554,102.54,102.48,8.7903]
[1770088195212,6.9103554,102.54,102.47,8.7911]
[1770088195415,6.9103554,102.54,102.45,136.7814]
[1770088196020,6.9103554,102.54,102.48,8.7903]
[1770088196318,6.9103554,102.54,102.45,136.7814]
[1770088196319,6.86830303,102.53,102.45,136.7814]
[1770088197614,15.65106019,102.54,102.45,136.7814]
[1770088198316,15.65106019,102.54,102.48,8.7903]
[1770088198507,6.86958923,102.53,102.45,136.7814]
[1770088198713,6.86958923,102.53,102.44,327.0481]
[1770088199014,6.86958923,102.53,102.47,8.7913]
[1770088200115,6.86958923,102.53,102.48,8.7904]
[1770088200615,30.91029471,102.55,102.46,136.7672]
[1770088201923,22.12579471,102.55,102.49,8.7895]
[1770088202212,6.90275517,102.58,102.49,273.448]
[1770088202418,6.90275517,102.58,102.52,8.7869]
[1770088202917,6.89535705,102.57,102.48,326.801]
[1770088203217,6.89535705,102.55,102.47,136.7545]
[1770088203409,6.89535705,102.55,102.48,136.7398]
[1770088203612,6.89535705,102.55,102.47,136.7545]
[1770088204118,6.89535705,102.55,102.48,136.7413]
[1770088204714,6.89535705,102.55,102.51,8.7876]
[1770088205114,6.90007216,102.57,102.52,8.787]
[1770088205320,6.90007216,102.57,102.5,136.7131]
[1770088205718,6.90007216,102.57,102.52,8.7864]
[1770088206323,6.90007216,102.55,102.48,190.6]
[1770088206723,6.90007216,102.55,102.47,136.7545]
[1770088207323,6.9049753,102.54,102.48,8.7905]
[1770088209124,6.90686521,102.58,102.49,136.7283]
[1770088209421,6.90686521,102.58,102.52,8.787]
[1770088209617,6.90686521,102.58,102.51,136.7004]
[1770088209823,6.90686521,102.6,102.52,136.6859]
[1770088210220,6.90686521,102.6,102.52,327.7059]
[1770088210621,6.90363521,102.62,102.53,136.6734]
[1770088212122,6.90363521,102.62,102.54,136.6571]
[1770088213124,6.90363521,102.62,102.56,8.7829]
[1770088213523,6.89580278,102.64,102.56,136.6326]
[1770088213925,6.89580278,102.64,102.58,8.7817]
[1770088214221,6.89580278,102.64,102.55,328.2265]
[1770088214417,6.89580278,102.63,102.56,8.7828]
[1770088214926,6.89580278,102.63,102.55,191.58]
[1770088215121,6.89580278,102.63,102.56,8.7836]
[1770088215815,6.89580278,102.63,102.57,8.7825]
[1770088216415,396.03781501,102.65,102.57,136.6193]
[1770088216619,6.89781501,102.65,102.57,136.6193]
[1770088217519,7.80021742,102.67,102.59,8.781]
[1770088217828,6.898992,102.69,102.61,136.567]
[1770088220328,6.898992,102.69,102.63,8.7776]
[1770088221427,6.898992,102.69,102.64,8.7767]
[1770088221626,15.23166175,102.71,102.64,8.7767]
[1770088221627,6.86957433,102.71,102.64,8.7767]
[1770088222128,6.86957433,102.71,102.65,8.7757]
[1770088222429,6.86957433,102.72,102.62,328.9535]
[1770088223331,6.86586046,102.71,102.64,8.7761]
[1770088223520,22.09752221,102.73,102.64,136.5285]
[1770088224333,30.86662221,102.73,102.65,8.7757]
[1770088224730,22.09752221,102.73,102.65,8.7757]
[1770088225231,22.09752221,102.73,102.66,8.7749]
[1770088225430,6.88558886,102.72,102.63,136.5416]
[1770088226031,6.88558886,102.72,102.65,8.7759]
[1770088226632,6.88558886,102.72,102.66,8.775]
[1770088227332,6.88558886,102.72,102.65,8.7759]
[1770088227727,6.88558886,102.72,102.62,136.5535]